fUST/lending_fUST_20240803
["ID","MTS","AMOUNT","RATE_DAILY","PERIOD"]
[333976687,1722659449038,-788.0,0.00013971,2]
[333976688,1722659449048,-788.0,0.00013971,2]
[333976689,1722659449059,-788.08484735,0.00013971,2]
[333976690,1722659449069,-500.0,0.00013972,2]
[333976691,1722659449079,-511.83952141,0.00013972,2]
[333976692,1722659449088,-653.98,0.00013972,2]
[333976693,1722659449099,-161.42941201,0.00013972,2]
[333976694,1722659449108,-151.0,0.00013972,2]
[333976695,1722659449118,-151.0,0.00013972,2]
[333976696,1722659449128,-486.66930444,0.00013972,2]
[333976697,1722659449137,-500.0,0.00013972,2]
[333976698,1722659449147,-560.87386976,0.00013972,2]
[333976699,1722659449157,-178.80225908,0.00013972,2]
[333976700,1722659449169,-500.0,0.00013972,2]
[333976701,1722659449179,-500.0,0.00013972,2]
[333976702,1722659449189,-503.72665599,0.00013972,2]
[333976703,1722659449199,-500.0,0.00013972,2]
[333976704,1722659449208,-500.0,0.00013972,2]
[333976705,1722659449218,-500.0,0.00013972,2]
[333976706,1722659449227,-151.0,0.00013972,2]
[333976707,1722659449237,-151.0,0.00013972,2]
[333976708,1722659449247,-151.83333,0.00013972,2]
[333976709,1722659449258,-500.0,0.00013972,2]
[333976710,1722659449268,-500.0,0.00013972,2]
[333976711,1722659449278,-500.0,0.00013972,2]
[333976712,1722659449288,-561.62536881,0.00013972,2]
[333976713,1722659449361,-505.38810161,0.00013972,2]
[333976714,1722659449371,-500.0,0.00013972,2]
[333976715,1722659449382,-505.45069451,0.00013972,2]
[333976716,1722659449394,-471.68922172,0.00013972,2]
[333976717,1722659449404,-500.0,0.00013972,2]
[333976718,1722659449414,-500.0,0.00013972,2]
[333976719,1722659449427,-502.33698685,0.00013972,2]
[333976720,1722659449437,-500.0,0.00013972,2]
[333976721,1722659449447,-509.62428841,0.00013972,2]
[333976722,1722659449458,-503.56947602,0.00013972,2]
[333976723,1722659449470,-504.86240753,0.00013972,2]
[333976724,1722659449481,-500.0,0.00013972,2]
[333976725,1722659449491,-504.28645165,0.00013972,2]
[333976726,1722659449501,-185.860472,0.00013972,2]
[333976727,1722659449512,-531.11048598,0.00013972,2]
[333976728,1722659449522,-212.0724779,0.00013972,2]
[333976729,1722659449532,-500.0,0.00013972,2]
[333976730,1722659449543,-533.14296707,0.00013972,2]
[333976731,1722659449553,-1274.59,0.00013972,2]
[333976732,1722659449563,-500.0,0.00013972,2]
[333976733,1722659449573,-475.94745725,0.00013972,2]
[333976734,1722659449582,-500.0,0.00013972,2]
[333976735,1722659449592,-231.54665563,0.00013972,2]
[333976736,1722659449603,-500.0,0.00013972,2]
[333976737,1722659449613,-505.26806474,0.00013972,2]
[333976738,1722659449624,-500.0,0.00013972,2]
[333976739,1722659449635,-504.12850048,0.00013972,2]
[333976740,1722659449644,-767.99,0.00013972,2]
[333976741,1722659449653,-494.51,0.00013972,2]
[333976742,1722659449662,-500.0,0.00013972,2]
[333976743,1722659449675,-507.24168428,0.00013972,2]
[333976744,1722659449685,-511.29699473,0.00013972,2]
[333976745,1722659449695,-500.0,0.00013972,2]
[333976746,1722659449704,-500.0,0.00013972,2]
[333976747,1722659449715,-509.85937887,0.00013972,2]
[333976748,1722659449725,-508.55530421,0.00013972,2]
[333976749,1722659449735,-500.0,0.00013972,2]
[333976750,1722659449745,-500.0,0.00013972,2]
[333976751,1722659449755,-500.0,0.00013972,2]
[333976752,1722659449764,-500.0,0.00013972,2]
[333976753,1722659449774,-500.0,0.00013972,2]
[333976754,1722659449785,-500.0,0.00013972,2]
[333976755,1722659449794,-500.0,0.00013972,2]
[333976756,1722659449804,-500.0,0.00013972,2]
[333976757,1722659449813,-520.59,0.00013972,2]
[333976758,1722659449823,-151.0,0.00013972,2]
[333976759,1722659449834,-152.192742,0.00013972,2]
[333976760,1722659449843,-608.36097802,0.00013972,2]
[333976761,1722659449852,-500.0,0.00013972,2]
[333976762,1722659449861,-500.0,0.00013972,2]
[333976763,1722659449871,-500.0,0.00013972,2]
[333976764,1722659449881,-500.0,0.00013972,2]
[333976765,1722659449891,-508.35995666,0.00013972,2]
[333976766,1722659449900,-500.0,0.00013972,2]
[333976767,1722659449910,-516.81591224,0.00013972,2]
[333976768,1722659449921,-500.0,0.00013972,2]
[333976769,1722659449932,-363.30826258,0.00013972,2]
[333976770,1722659449942,-500.0,0.00013972,2]
[333976771,1722659449952,-704.78,0.00013972,2]
[333976772,1722659449962,-500.0,0.00013972,2]
[333976773,1722659449971,-500.0,0.00013972,2]
[333976774,1722659449980,-500.0,0.00013972,2]
[333976775,1722659449991,-151.0,0.00013972,2]
[333976776,1722659450000,-500.0,0.00013972,2]
[333976777,1722659450010,-500.0,0.00013972,2]
[333976778,1722659450019,-500.0,0.00013972,2]
[333976779,1722659450029,-500.0,0.00013972,2]
[333976780,1722659450038,-500.0,0.00013972,2]
[333976781,1722659450047,-500.0,0.00013972,2]
[333976782,1722659450057,-500.0,0.00013972,2]
[333976783,1722659450066,-878.77,0.00013972,2]
[333976784,1722659450076,-500.0,0.00013972,2]
[333976785,1722659450085,-500.0,0.00013972,2]
[333976786,1722659450095,-500.0,0.00013972,2]
[333976787,1722659450105,-500.0,0.00013972,2]
[333976788,1722659450115,-396.251569,0.00013972,2]
[333976789,1722659450126,-396.251569,0.00013972,2]
[333976790,1722659450136,-538.54516564,0.00013972,2]
[333976791,1722659450147,-347.67562385,0.00013972,2]
[333976792,1722659450157,-396.251569,0.00013972,2]
[333976793,1722659450166,-396.251572,0.00013972,2]
[333976794,1722659450179,-500.0,0.00013972,2]
[333976795,1722659450189,-500.0,0.00013972,2]
[333976796,1722659450198,-500.0,0.00013972,2]
[333976797,1722659450208,-500.0,0.00013972,2]
[333976798,1722659450218,-513.17411983,0.00013972,2]
[333976799,1722659450227,-500.0,0.00013972,2]
[333976800,1722659450238,-500.0,0.00013972,2]
[333976801,1722659450248,-500.0,0.00013972,2]
[333976802,1722659450257,-500.0,0.00013972,2]
[333976803,1722659450267,-347.648474,0.00013972,2]
[333976804,1722659450278,-500.0,0.00013972,2]
[333976805,1722659450288,-347.648474,0.00013972,2]
[333976806,1722659450298,-681.179113,0.00013972,2]
[333976807,1722659450309,-681.179113,0.00013972,2]
[333976808,1722659450319,-500.0,0.00013972,2]
[333976809,1722659450331,-347.648474,0.00013972,2]
[333976810,1722659450341,-347.648478,0.00013972,2]
[333976811,1722659450352,-681.179113,0.00013972,2]
[333976812,1722659450362,-681.179104,0.00013972,2]
[333976813,1722659450372,-500.0,0.00013972,2]
[333976814,1722659450382,-500.0,0.00013972,2]
[333976815,1722659450397,-500.0,0.00013972,2]
[333976816,1722659450408,-730.35,0.00013972,2]
[333976817,1722659450419,-504.36477081,0.00013972,2]
[333976818,1722659450431,-7549.59,0.00013972,2]
[333976819,1722659450441,-1931.44,0.00013972,2]
[333976820,1722659450451,-503.65704644,0.00013972,2]
[333976821,1722659450462,-500.0,0.00013972,2]
[333976822,1722659450472,-500.0,0.00013972,2]
[333976823,1722659450483,-500.0,0.00013972,2]
[333976824,1722659450492,-500.0,0.00013972,2]
[333976825,1722659450502,-504.9058869,0.00013972,2]
[333976826,1722659450512,-508.84588911,0.00013972,2]
[333976827,1722659450521,-1484.84,0.00013972,2]
[333976828,1722659450530,-500.0,0.00013972,2]
[333976829,1722659450539,-500.0,0.00013972,2]
[333976830,1722659450549,-441.092808,0.00013972,2]
[333976831,1722659450560,-500.0,0.00013972,2]
[333976832,1722659450632,-441.092805,0.00013972,2]
[333976833,1722659450643,-506.21372389,0.00013972,2]
[333976834,1722659450652,-500.0,0.00013972,2]
[333976835,1722659450662,-3114.86,0.00013972,2]
[333976836,1722659450672,-797.56,0.00013972,2]
[333976837,1722659450682,-151.0,0.00013972,2]
[333976838,1722659450692,-568.33,0.00013972,2]
[333976839,1722659450701,-265.56872482,0.00013972,2]
[333976840,1722659450711,-1052.48,0.00013972,2]
[333976841,1722659450721,-1165.13,0.00013972,2]
[333976842,1722659450732,-502.98404734,0.00013972,2]
[333976843,1722659450742,-500.0,0.00013972,2]
[333976844,1722659450751,-500.0,0.00013972,2]
[333976845,1722659450761,-276.21774009,0.00013972,2]
[333976846,1722659450771,-500.0,0.00013972,2]
[333976847,1722659450780,-500.0,0.00013972,2]
[333976848,1722659450790,-500.0,0.00013972,2]
[333976849,1722659450800,-516.53011849,0.00013972,2]
[333976850,1722659450810,-779.86,0.00013972,2]
[333976851,1722659450819,-500.0,0.00013972,2]
[333976852,1722659450829,-506.56107684,0.00013972,2]
[333976853,1722659450840,-511.59881426,0.00013972,2]
[333976854,1722659450849,-984.82,0.00013972,2]
[333976855,1722659450859,-3529.65,0.00013972,2]
[333976856,1722659450868,-1850.04,0.00013972,2]
[333976857,1722659450878,-211.590154,0.00013972,2]
[333976858,1722659450888,-500.0,0.00013972,2]
[333976859,1722659450898,-211.590154,0.00013972,2]
[333976860,1722659450909,-647.72,0.00013972,2]
[333976861,1722659450921,-500.0,0.00013972,2]
[333976862,1722659450930,-511.12489465,0.00013972,2]
[333976863,1722659450940,-877.22,0.00013972,2]
[333976864,1722659450952,-500.0,0.00013972,2]
[333976865,1722659450964,-500.0,0.00013972,2]
[333976866,1722659450973,-506.38376022,0.00013972,2]
[333976867,1722659450982,-500.0,0.00013972,2]
[333976868,1722659450992,-500.0,0.00013972,2]
[333976869,1722659451003,-500.0,0.00013972,2]
[333976870,1722659451015,-502.76573779,0.00013972,2]
[333976871,1722659451025,-771.49,0.00013972,2]
[333976872,1722659451035,-500.0,0.00013972,2]
[333976873,1722659451046,-500.0,0.00013972,2]
[333976874,1722659451056,-500.0,0.00013972,2]
[333976875,1722659451066,-729.7,0.00013972,2]
[333976876,1722659451077,-500.0,0.00013972,2]
[333976877,1722659451087,-516.12272429,0.00013972,2]
[333976878,1722659451097,-1482.24,0.00013972,2]
[333976879,1722659451106,-216.989715,0.00013972,2]
[333976880,1722659451115,-500.0,0.00013972,2]
[333976881,1722659451124,-500.0,0.00013972,2]
[333976882,1722659451135,-216.989709,0.00013972,2]
[333976883,1722659451147,-821.84,0.00013972,2]
[333976884,1722659451157,-500.0,0.00013972,2]
[333976885,1722659451170,-507.11,0.00013972,2]
[333976886,1722659451181,-512.018438,0.00013972,2]
[333976887,1722659451191,-506.85250603,0.00013972,2]
[333976888,1722659451201,-512.018428,0.00013972,2]
[333976889,1722659451213,-394.05178777,0.00013972,2]
[333976890,1722659451225,-5736.82,0.00013972,2]
[333976891,1722659451236,-500.0,0.00013972,2]
[333976892,1722659451245,-317.49961559,0.00013972,2]
[333976893,1722659451255,-500.0,0.00013972,2]
[333976894,1722659451264,-500.0,0.00013972,2]
[333976895,1722659451273,-1132.64,0.00013972,2]
[333976896,1722659451283,-775.25,0.00013972,2]
[333976897,1722659451292,-500.0,0.00013972,2]
[333976898,1722659451301,-505.66345766,0.00013972,2]
[333976899,1722659451310,-500.0,0.00013972,2]
[333976900,1722659451319,-500.0,0.00013972,2]
[333976901,1722659451328,-500.0,0.00013972,2]
[333976902,1722659451338,-500.0,0.00013972,2]
[333976903,1722659451347,-500.0,0.00013972,2]
[333976904,1722659451356,-500.0,0.00013972,2]
[333976905,1722659451366,-501.49142423,0.00013972,2]
[333976906,1722659451375,-924.03,0.00013972,2]
[333976907,1722659451388,-2068.55,0.00013972,2]
[333976908,1722659451397,-500.0,0.00013972,2]
[333976909,1722659451407,-500.0,0.00013972,2]
[333976910,1722659451418,-500.0,0.00013972,2]
[333976911,1722659451433,-1533.76,0.00013972,2]
[333976912,1722659451443,-500.0,0.00013972,2]
[333976913,1722659451455,-500.0,0.00013972,2]
[333976914,1722659451466,-504.64878827,0.00013972,2]
[333976915,1722659451475,-500.0,0.00013972,2]
[333976916,1722659451484,-571.18400149,0.00013972,2]
[333976917,1722659451495,-500.0,0.00013972,2]
[333976918,1722659451506,-1418.17,0.00013972,2]
[333976919,1722659451516,-270.50062349,0.00013972,2]
[333976920,1722659451526,-1231.28,0.00013972,2]
[333976921,1722659451537,-5384.13,0.00013972,2]
[333976922,1722659451549,-1431.35,0.00013972,2]
[333976923,1722659451560,-674.72,0.00013972,2]
[333976924,1722659451572,-500.0,0.00013972,2]
[333976925,1722659451582,-500.0,0.00013972,2]
[333976926,1722659451594,-500.0,0.00013972,2]
[333976927,1722659451605,-657.9,0.00013972,2]
[333976928,1722659451618,-153.779942,0.00013972,2]
[333976929,1722659451627,-500.0,0.00013972,2]
[333976930,1722659451639,-500.0,0.00013972,2]
[333976931,1722659451649,-500.0,0.00013972,2]
[333976932,1722659451658,-500.0,0.00013972,2]
[333976933,1722659451673,-504.12724164,0.00013972,2]
[333976934,1722659451684,-510.4127342,0.00013972,2]
[333976935,1722659451693,-500.0,0.00013972,2]
[333976936,1722659451705,-655.97,0.00013972,2]
[333976937,1722659451715,-1324.82,0.00013972,2]
[333976938,1722659451726,-533.40501666,0.00013972,2]
[333976939,1722659451736,-505.97091059,0.00013972,2]
[333976940,1722659451746,-874.23,0.00013972,2]
[333976941,1722659451829,-240.932266,0.00013972,2]
[333976942,1722659451840,-500.0,0.00013972,2]
[333976943,1722659451852,-240.932261,0.00013972,2]
[333976944,1722659451864,-747.91,0.00013972,2]
[333976945,1722659451875,-500.0,0.00013972,2]
[333976946,1722659451886,-500.0,0.00013972,2]
[333976947,1722659451897,-200.0,0.00013973,2]
[333976948,1722659451908,-154.89931544,0.00014,2]
[333976949,1722659451917,-359.0,0.000142,2]
[333976950,1722659451928,-586.696619,0.000142,5]
[333976951,1722659451937,-500.0,0.00014205,2]
[333976952,1722659451946,-774.25,0.00014205,2]
[333976953,1722659451955,-152.10323,0.00014206,2]
[333976954,1722659451964,-153.0,0.00014219,2]
[333976955,1722659451974,-300.99786808,0.00014223,2]
[333976956,1722659451983,-320.2102452,0.00014235,2]
[333976957,1722659451993,-774.25,0.00014235,2]
[333976958,1722659452003,-774.25,0.00014235,2]
[333976959,1722659452013,-774.25,0.00014245,2]
[333976960,1722659452025,-774.25,0.00014245,2]
[333976961,1722659452035,-774.25,0.00014245,2]
[333976962,1722659452046,-500.0,0.00014246,2]
[333976963,1722659452056,-653.98,0.00014246,2]
[333976964,1722659452067,-500.0,0.00014246,2]
[333976965,1722659452077,-503.60970998,0.00014246,2]
[333976966,1722659452087,-500.0,0.00014246,2]
[333976967,1722659452099,-500.0,0.00014246,2]
[333976968,1722659452109,-500.0,0.00014246,2]
[333976969,1722659452119,-500.0,0.00014246,2]
[333976970,1722659452128,-502.33149967,0.00014246,2]
[333976971,1722659452138,-500.0,0.00014246,2]
[333976972,1722659452148,-500.0,0.00014246,2]
[333976973,1722659452158,-500.0,0.00014246,2]
[333976974,1722659452171,-1274.59,0.00014246,2]
[333976975,1722659452181,-500.0,0.00014246,2]
[333976976,1722659452191,-500.0,0.00014246,2]
[333976977,1722659452201,-767.99,0.00014246,2]
[333976978,1722659452212,-500.0,0.00014246,2]
[333976979,1722659452222,-500.0,0.00014246,2]
[333976980,1722659452233,-507.27655907,0.00014246,2]
[333976981,1722659452244,-500.0,0.00014246,2]
[333976982,1722659452253,-500.0,0.00014246,2]
[333976983,1722659452263,-500.0,0.00014246,2]
[333976984,1722659452274,-500.0,0.00014246,2]
[333976985,1722659452284,-520.59,0.00014246,2]
[333976986,1722659452294,-500.0,0.00014246,2]
[333976987,1722659452303,-500.0,0.00014246,2]
[333976988,1722659452312,-512.36386978,0.00014246,2]
[333976989,1722659452322,-500.0,0.00014246,2]
[333976990,1722659452334,-500.0,0.00014246,2]
[333976991,1722659452344,-704.78,0.00014246,2]
[333976992,1722659452357,-339.72296225,0.00014246,2]
[333976993,1722659452382,-500.0,0.00014246,2]
[333976994,1722659452402,-500.0,0.00014246,2]
[333976995,1722659452423,-500.0,0.00014246,2]
[333976996,1722659452444,-453.66698811,0.00014246,2]
[333976997,1722659452462,-878.77,0.00014246,2]
[333976998,1722659452481,-510.36103112,0.00014246,2]
[333976999,1722659452498,-512.46583954,0.00014246,2]
[333977000,1722659452512,-500.0,0.00014246,2]
[333977001,1722659452528,-500.0,0.00014246,2]
[333977002,1722659452548,-500.0,0.00014246,2]
[333977003,1722659452568,-500.0,0.00014246,2]
[333977004,1722659452582,-511.61756092,0.00014246,2]
[333977005,1722659452599,-566.00194417,0.00014246,2]
[333977006,1722659452615,-506.69848391,0.00014246,2]
[333977007,1722659452630,-500.0,0.00014246,2]
[333977008,1722659452647,-500.0,0.00014246,2]
[333977009,1722659452661,-513.31343783,0.00014246,2]
[333977010,1722659452678,-730.35,0.00014246,2]
[333977011,1722659452692,-7549.59,0.00014246,2]
[333977012,1722659452707,-1931.44,0.00014246,2]
[333977013,1722659452721,-500.0,0.00014246,2]
[333977014,1722659452736,-500.0,0.00014246,2]
[333977015,1722659452750,-500.0,0.00014246,2]
[333977016,1722659452764,-500.0,0.00014246,2]
[333977017,1722659452778,-1484.84,0.00014246,2]
[333977018,1722659452793,-500.0,0.00014246,2]
[333977019,1722659452809,-502.34464033,0.00014246,2]
[333977020,1722659452825,-500.0,0.00014246,2]
[333977021,1722659452840,-500.0,0.00014246,2]
[333977022,1722659452857,-3114.86,0.00014246,2]
[333977023,1722659452871,-797.56,0.00014246,2]
[333977024,1722659452886,-568.33,0.00014246,2]
[333977025,1722659452901,-1052.48,0.00014246,2]
[333977026,1722659452921,-1165.13,0.00014246,2]
[333977027,1722659452935,-508.80038518,0.00014246,2]
[333977028,1722659452949,-500.0,0.00014246,2]
[333977029,1722659452965,-500.0,0.00014246,2]
[333977030,1722659452979,-500.0,0.00014246,2]
[333977031,1722659452990,-500.0,0.00014246,2]
[333977032,1722659453000,-779.86,0.00014246,2]
[333977033,1722659453010,-500.0,0.00014246,2]
[333977034,1722659453020,-984.82,0.00014246,2]
[333977035,1722659453030,-3529.65,0.00014246,2]
[333977036,1722659453041,-1850.04,0.00014246,2]
[333977037,1722659453051,-500.0,0.00014246,2]
[333977038,1722659453060,-647.72,0.00014246,2]
[333977039,1722659453071,-500.0,0.00014246,2]
[333977040,1722659453080,-877.22,0.00014246,2]
[333977041,1722659453090,-500.0,0.00014246,2]
[333977042,1722659453240,-500.0,0.00014246,2]
[333977043,1722659453253,-504.30861018,0.00014246,2]
[333977044,1722659453262,-500.0,0.00014246,2]
[333977045,1722659453271,-500.0,0.00014246,2]
[333977046,1722659453281,-771.49,0.00014246,2]
[333977047,1722659453291,-500.0,0.00014246,2]
[333977048,1722659453301,-500.0,0.00014246,2]
[333977049,1722659453310,-500.0,0.00014246,2]
[333977050,1722659453320,-729.7,0.00014246,2]
[333977051,1722659453330,-500.0,0.00014246,2]
[333977052,1722659453340,-1482.24,0.00014246,2]
[333977053,1722659453350,-500.0,0.00014246,2]
[333977054,1722659453360,-500.0,0.00014246,2]
[333977055,1722659453370,-821.84,0.00014246,2]
[333977056,1722659453380,-507.11,0.00014246,2]
[333977057,1722659453395,-5736.82,0.00014246,2]
[333977058,1722659453405,-500.0,0.00014246,2]
[333977059,1722659453417,-500.0,0.00014246,2]
[333977060,1722659453431,-1132.64,0.00014246,2]
[333977061,1722659453443,-775.25,0.00014246,2]
[333977062,1722659453454,-500.0,0.00014246,2]
[333977063,1722659453468,-500.0,0.00014246,2]
[333977064,1722659453479,-500.0,0.00014246,2]
[333977065,1722659453490,-500.0,0.00014246,2]
[333977066,1722659453500,-500.0,0.00014246,2]
[333977067,1722659453511,-500.0,0.00014246,2]
[333977068,1722659453523,-924.03,0.00014246,2]
[333977069,1722659453533,-2068.55,0.00014246,2]
[333977070,1722659453544,-500.0,0.00014246,2]
[333977071,1722659453556,-500.0,0.00014246,2]
[333977072,1722659453567,-1533.76,0.00014246,2]
[333977073,1722659453578,-506.12585077,0.00014246,2]
[333977074,1722659453590,-500.0,0.00014246,2]
[333977075,1722659453600,-510.90577865,0.00014246,2]
[333977076,1722659453610,-514.4193816,0.00014246,2]
[333977077,1722659453622,-1418.17,0.00014246,2]
[333977078,1722659453631,-1231.28,0.00014246,2]
[333977079,1722659453642,-5384.13,0.00014246,2]
[333977080,1722659453654,-1431.35,0.00014246,2]
[333977081,1722659453665,-674.72,0.00014246,2]
[333977082,1722659453677,-500.0,0.00014246,2]
[333977083,1722659453688,-500.0,0.00014246,2]
[333977084,1722659453700,-539.89249973,0.00014246,2]
[333977085,1722659453710,-657.9,0.00014246,2]
[333977086,1722659453720,-500.0,0.00014246,2]
[333977087,1722659453730,-518.21087639,0.00014246,2]
[333977088,1722659453739,-500.0,0.00014246,2]
[333977089,1722659453749,-500.0,0.00014246,2]
[333977090,1722659453758,-500.0,0.00014246,2]
[333977091,1722659453769,-655.97,0.00014246,2]
[333977092,1722659453778,-1324.82,0.00014246,2]
[333977093,1722659453789,-874.23,0.00014246,2]
[333977094,1722659453800,-500.0,0.00014246,2]
[333977095,1722659453811,-747.91,0.00014246,2]
[333977096,1722659453823,-500.0,0.00014246,2]
[333977097,1722659453833,-592.727978,0.00014247,2]
[333977098,1722659453844,-165.549496,0.00014247,2]
[333977099,1722659453853,-638.09494252,0.00014393,2]
[333977100,1722659453864,-774.25,0.00014509,2]
[333977101,1722659453874,-774.25,0.00014509,2]
[333977102,1722659453887,-774.25,0.00014519,2]
[333977103,1722659453897,-774.25,0.00014519,2]
[333977104,1722659453908,-490.74439377,0.0001452,2]
[333977105,1722659453920,-653.98,0.0001452,2]
[333977106,1722659453929,-500.0,0.0001452,2]
[333977107,1722659453938,-500.0,0.0001452,2]
[333977108,1722659453947,-500.0,0.0001452,2]
[333977109,1722659453957,-1274.59,0.0001452,2]
[333977110,1722659453966,-500.0,0.0001452,2]
[333977111,1722659453977,-500.0,0.0001452,2]
[333977112,1722659453987,-767.99,0.0001452,2]
[333977113,1722659453998,-500.0,0.0001452,2]
[333977114,1722659454008,-500.0,0.0001452,2]
[333977115,1722659454018,-500.0,0.0001452,2]
[333977116,1722659454028,-520.59,0.0001452,2]
[333977117,1722659454037,-500.0,0.0001452,2]
[333977118,1722659454046,-500.0,0.0001452,2]
[333977119,1722659454056,-704.78,0.0001452,2]
[333977120,1722659454065,-500.0,0.0001452,2]
[333977121,1722659454075,-500.0,0.0001452,2]
[333977122,1722659454084,-878.77,0.0001452,2]
[333977123,1722659454093,-500.0,0.0001452,2]
[333977124,1722659454103,-500.0,0.0001452,2]
[333977125,1722659454112,-507.62216351,0.0001452,2]
[333977126,1722659454122,-500.0,0.0001452,2]
[333977127,1722659454131,-730.35,0.0001452,2]
[333977128,1722659454139,-7549.59,0.0001452,2]
[333977129,1722659454150,-1931.44,0.0001452,2]
[333977130,1722659454160,-500.0,0.0001452,2]
[333977131,1722659454170,-500.0,0.0001452,2]
[333977132,1722659454180,-274.29702645,0.0001452,2]
[333977133,1722659454192,-1484.84,0.0001452,2]
[333977134,1722659454202,-500.0,0.0001452,2]
[333977135,1722659454214,-500.0,0.0001452,2]
[333977136,1722659454227,-500.0,0.0001452,2]
[333977137,1722659454238,-3114.86,0.0001452,2]
[333977138,1722659454247,-797.56,0.0001452,2]
[333977139,1722659454256,-568.33,0.0001452,2]
[333977140,1722659454266,-1052.48,0.0001452,2]
[333977141,1722659454276,-1165.13,0.0001452,2]
[333977142,1722659454286,-500.0,0.0001452,2]
[333977143,1722659454296,-500.0,0.0001452,2]
[333977144,1722659454307,-500.0,0.0001452,2]
[333977145,1722659454318,-500.0,0.0001452,2]
[333977146,1722659454330,-779.86,0.0001452,2]
[333977147,1722659454341,-500.0,0.0001452,2]
[333977148,1722659454351,-984.82,0.0001452,2]
[333977149,1722659454363,-3529.65,0.0001452,2]
[333977150,1722659454374,-1850.04,0.0001452,2]
[333977151,1722659454389,-500.0,0.0001452,2]
[333977152,1722659454400,-647.72,0.0001452,2]
[333977153,1722659454410,-877.22,0.0001452,2]
[333977154,1722659454420,-500.0,0.0001452,2]
[333977155,1722659454434,-500.0,0.0001452,2]
[333977156,1722659454445,-500.0,0.0001452,2]
[333977157,1722659454456,-500.0,0.0001452,2]
[333977158,1722659454468,-771.49,0.0001452,2]
[333977159,1722659454479,-500.0,0.0001452,2]
[333977160,1722659454490,-500.0,0.0001452,2]
[333977161,1722659454501,-729.7,0.0001452,2]
[333977162,1722659454512,-500.0,0.0001452,2]
[333977163,1722659454523,-1482.24,0.0001452,2]
[333977164,1722659454534,-500.0,0.0001452,2]
[333977165,1722659454546,-500.0,0.0001452,2]
[333977166,1722659454556,-821.84,0.0001452,2]
[333977167,1722659454567,-507.11,0.0001452,2]
[333977168,1722659454578,-5630.42298423,0.0001452,2]
[333977224,1722660637732,-300.0,0.00012485,2]
[333977225,1722660637742,-10125.7316359,0.00012486,2]
[333977226,1722660637754,-168.433577,0.00012986,2]
[333977227,1722660637763,-200.0,0.00013673,2]
[333977228,1722660637773,-84122.55716016,0.00013688,2]
[333977234,1722660639872,-5729.47620694,0.00013688,2]
[333977235,1722660639882,-586.43,0.00013697,2]
[333977236,1722660639891,-586.43,0.00013697,2]
[333977237,1722660639900,-586.43,0.00013697,2]
[333977238,1722660639909,-500.71650985,0.00013698,2]
[333977239,1722660639919,-500.0,0.00013698,2]
[333977240,1722660639928,-345.54163527,0.00013698,2]
[333977241,1722660639937,-503.88063968,0.00013698,2]
[333977242,1722660640051,-500.0,0.00013698,2]
[333977243,1722660640062,-500.0,0.00013698,2]
[333977244,1722660640071,-500.0,0.00013698,2]
[333977245,1722660640081,-506.63878692,0.00013698,2]
[333977246,1722660640090,-509.16746057,0.00013698,2]